bitfinex/quotes_ETHUSD_20241212
["timestamp","ask_amount","ask_price","bid_price","bid_amount"]
[1734009649047,1.559,3973.2,3972.1,2.51755]
[1734009649314,1.55597094,3973.2,3971.5,2.51794]
[1734009649454,1.55597094,3973.2,3971.8,1.5974]
[1734009649661,1.55597094,3973.2,3971.9,2.51768]
[1734009649894,0.45700321,3973.1,3971.9,2.51766]
[1734009650358,0.45700321,3973.1,3972.0,2.5176]
[1734009650859,0.45700321,3973.1,3971.5,5.51789]
[1734009650860,2.51707,3972.9,3971.7,2.51777]
[1734009651059,2.5173,3972.5,3971.0,2.55714644]
[1734009651263,0.25173,3972.4,3970.9,7.60878382]
[1734009651568,2.51744,3972.3,3971.2,2.5181]
[1734009652258,1.535,3972.2,3970.9,3.49943738]
[1734009652596,1.6351,3971.6,3970.1,4.13587]
[1734009652798,1.6351,3971.2,3970.3,2.51869]
[1734009652955,1.6351,3971.2,3969.7,4.17424644]
[1734009653158,1.6351,3971.2,3970.7,2.51839]
[1734009653409,1.6351,3971.2,3970.5,2.51856]
[1734009653565,1.6351,3971.2,3970.6,2.5185]
[1734009653966,1.6351,3971.2,3969.9,6.01833738]
[1734009653967,1.6351,3971.2,3970.1,2.5188]
[1734009654299,1.6351,3971.2,3971.0,2.51823]
[1734009654513,1.5524,3972.4,3970.7,2.51844]
[1734009654795,0.15524,3972.3,3970.7,2.51844]
[1734009654995,1.5524,3972.2,3971.0,2.51819]
[1734009655155,1.6261,3971.9,3970.5,3.0]
[1734009655366,2.51705,3973.0,3971.8,2.51775]
[1734009655566,1.6261,3972.3,3971.5,2.51794]
[1734009655901,1.6261,3972.3,3971.8,2.51769]
[1734009656115,1.6261,3972.3,3971.5,2.51787]
[1734009656818,1.6261,3972.3,3970.8,4.11222861]
[1734009656819,1.6261,3972.3,3971.3,2.51805]
[1734009656968,1.6261,3972.3,3971.5,3.49943738]
[1734009657401,1.6261,3972.3,3971.7,2.5178]
[1734009657788,1.6261,3972.3,3971.8,2.51774]
[1734009657970,1.6261,3972.3,3972.0,2.5176]
[1734009658166,1.6261,3972.3,3971.5,3.49943738]
[1734009658910,1.6261,3972.3,3971.9,2.51762]
[1734009659078,1.6261,3972.3,3972.0,2.51762]
[1734009659283,1.6261,3972.3,3971.8,2.51774]
[1734009659480,1.6261,3972.3,3971.5,6.01734738]
[1734009659779,1.6261,3972.3,3971.0,3.49943738]
[1734009659978,1.6261,3972.3,3971.0,6.01763738]
[1734009660193,1.6261,3972.3,3971.5,2.51793]
[1734009660429,1.78871,3972.3,3971.3,2.51806]
[1734009660629,1.78871,3972.3,3971.4,2.51799]
[1734009660848,1.6261,3972.3,3971.4,2.51799]
[1734009661044,1.6261,3972.3,3971.0,6.01763738]
[1734009661250,1.6261,3972.3,3971.5,2.51793]
[1734009662047,1.6261,3972.3,3971.0,3.49943738]
[1734009662250,1.6261,3972.3,3971.1,2.51818]
[1734009662455,1.5388,3972.1,3970.8,2.51835]
[1734009662652,1.5388,3972.1,3970.5,3.49943738]
[1734009662956,1.5388,3972.1,3971.1,2.51818]
[1734009663115,2.0888,3972.2,3970.5,3.49943738]
[1734009663313,1.5388,3971.5,3970.1,2.55845341]
[1734009663510,0.15388,3971.4,3970.1,2.51882]
[1734009663749,1.6408,3971.3,3970.0,3.49943738]
[1734009664167,2.51822,3971.1,3970.0,6.01830738]
[1734009664334,0.15388,3971.4,3969.7,2.51907]
[1734009664335,2.51827,3971.0,3969.7,2.51907]
[1734009664533,1.5309,3970.9,3969.7,2.51907]
[1734009664734,1.5309,3970.7,3969.3,2.55845341]
[1734009664953,1.5309,3970.3,3969.2,3.43232666]
[1734009665148,2.51877,3970.2,3969.0,6.01894738]
[1734009665368,2.51877,3970.2,3968.9,1.00742]
[1734009665369,2.51896,3969.9,3968.9,1.00742]
[1734009665556,2.51896,3969.9,3968.4,3.38832287]
[1734009665557,2.51896,3969.9,3968.7,2.51965]
[1734009665729,2.770926,3969.8,3968.6,2.51977]
[1734009666129,2.51909,3969.7,3968.6,2.51977]
[1734009666442,0.251896,3969.8,3968.7,2.51971]
[1734009666627,2.51903,3969.8,3968.5,2.51984]
[1734009666829,0.55,3970.2,3968.4,3.49943738]
[1734009667041,2.5187,3970.3,3968.4,3.49943738]
[1734009667254,2.5192,3969.6,3968.4,3.49943738]
[1734009667566,2.51924,3969.5,3968.4,3.49943738]
[1734009667928,0.251924,3969.4,3967.9,6.60065879]
[1734009668086,1.5035,3969.5,3968.4,2.51989]
[1734009668295,1.5035,3969.5,3968.4,2.51985]
[1734009668436,1.5035,3969.5,3968.2,2.52003]
[1734009668636,1.5035,3969.5,3968.3,2.51992]
[1734009668883,1.5035,3969.5,3968.0,2.52011]
[1734009669098,1.5035,3969.5,3968.4,3.49943738]
[1734009669252,1.6081,3970.5,3969.3,2.51931]
[1734009669453,4.12667,3970.5,3969.3,2.51931]
[1734009669654,1.6081,3970.5,3968.9,3.49943738]
[1734009669849,1.6081,3970.5,3969.0,2.51952]
[1734009670064,0.40118,3970.4,3969.5,2.51914]
[1734009670268,0.40118,3970.4,3970.0,2.51886]
[1734009670484,1.6081,3970.5,3969.4,3.49943738]
[1734009670640,1.6081,3970.5,3969.9,2.51895]
[1734009670849,1.6081,3970.5,3969.4,3.49943738]
[1734009670850,1.6081,3970.5,3969.6,2.51909]
[1734009671238,1.6081,3970.5,3969.4,3.49943738]
[1734009671239,1.6081,3970.5,3969.7,2.51904]
[1734009671437,1.6081,3970.5,3969.9,2.51893]
[1734009672076,1.6081,3970.5,3969.4,3.49943738]
[1734009672255,1.6081,3970.5,3969.5,2.51916]
[1734009672453,1.6081,3970.5,3970.0,2.51888]
[1734009672669,1.6081,3970.5,3969.7,2.51907]
[1734009672994,1.6081,3970.5,3970.2,2.51875]
[1734009673143,1.6081,3970.5,3970.0,2.51889]
[1734009673345,1.6081,3970.5,3969.7,2.51907]
[1734009673862,1.6081,3970.5,3969.4,3.49943738]
[1734009673863,1.76891,3970.5,3969.4,3.49943738]
[1734009674181,1.6081,3970.5,3969.9,3.49943738]
[1734009674495,0.50581599,3971.4,3969.9,3.49943738]
[1734009674496,1.6103,3971.3,3969.9,3.49943738]
[1734009674668,1.6103,3971.3,3969.7,1.5661]
[1734009674669,1.6103,3971.3,3970.4,3.49943738]
[1734009675047,1.6103,3971.3,3969.9,3.49943738]
[1734009675526,1.6103,3971.3,3970.2,2.51873]
[1734009675689,1.5207,3970.8,3969.4,2.55541953]
[1734009675991,1.5207,3970.8,3969.7,2.51905]
[1734009676198,1.5207,3970.8,3969.4,3.49943738]
[1734009676398,1.5207,3970.8,3969.9,3.49943738]
[1734009676682,1.5207,3970.8,3969.5,2.5192]
[1734009676860,0.15207,3970.7,3969.4,5.13493738]
[1734009677056,0.15207,3970.7,3969.5,2.5192]
[1734009677245,0.15207,3970.7,3969.4,5.13493738]
[1734009677579,0.15207,3970.7,3969.4,7.65415738]
[1734009677780,0.15207,3970.7,3969.9,2.51894]
[1734009678281,0.15207,3970.7,3970.0,2.51887]
[1734009678483,2.51748,3972.3,3970.4,3.49943738]
[1734009678785,6.01616738,3973.5,3971.1,2.51819]
[1734009678786,1.6233,3971.3,3971.1,2.51819]
[1734009679083,2.51723,3972.7,3971.1,2.51819]
[1734009679084,1.6233,3972.0,3971.1,2.51819]
[1734009679333,1.83551687,3972.0,3970.9,3.49943738]
[1734009679470,1.6233,3972.0,3971.4,2.51799]
[1734009679886,1.6233,3972.0,3971.1,2.51813]
[1734009680081,1.6233,3972.0,3970.9,3.49943738]
[1734009680394,1.6233,3972.0,3971.4,2.51798]
[1734009680977,1.6233,3972.0,3970.9,3.81761615]
[1734009681172,1.6233,3972.0,3971.1,2.51814]
[1734009681512,4.555014,3972.0,3970.9,6.01775738]
[1734009681806,4.14094,3972.0,3970.9,6.01775738]
[1734009682210,1.6233,3972.0,3970.9,3.49943738]
[1734009682374,1.6233,3972.0,3971.5,2.51789]
[1734009683386,1.6233,3972.0,3971.6,2.51784]
[1734009683580,1.6233,3972.0,3971.7,2.51778]
[1734009683805,1.552,3972.4,3971.9,3.49943738]
[1734009684007,1.552,3973.3,3971.9,3.49943738]
[1734009684193,0.406874,3973.2,3971.9,3.49943738]
[1734009684509,1.552,3973.3,3971.9,3.49943738]
[1734009684811,1.552,3973.3,3971.3,5.07445718]
[1734009684812,0.2216,3973.7,3972.4,3.49943738]
[1734009685232,0.2216,3973.7,3972.8,2.5171]
[1734009685531,0.2216,3973.7,3972.4,3.49943738]
[1734009685705,0.2216,3973.7,3972.6,2.51723]
[1734009685911,0.43599817,3973.6,3972.6,2.51723]
[1734009686110,0.43599817,3973.6,3972.5,2.5173]
[1734009686412,0.43599817,3973.6,3972.4,3.49943738]
[1734009686611,0.43599817,3973.6,3972.5,2.51726]
[1734009687026,0.43599817,3973.6,3972.4,3.49943738]
[1734009687190,0.00305015,3973.6,3972.6,2.51724]
[1734009687387,0.00305015,3973.6,3972.4,3.49943738]
[1734009687582,0.00305015,3973.6,3972.4,6.01678738]
[1734009687990,0.00305015,3973.6,3972.4,3.49943738]
[1734009687991,2.51667,3973.5,3972.4,3.49943738]
[1734009688295,0.00305015,3973.6,3972.9,3.49943738]
[1734009688649,0.00305015,3973.6,3973.1,2.51689]
[1734009688921,0.00305015,3973.6,3972.9,3.49943738]
[1734009689124,0.00305015,3973.6,3973.5,2.51667]
[1734009689499,0.00305015,3973.6,3973.4,3.49943738]
[1734009690026,0.00305015,3973.6,3973.4,6.01613738]
[1734009690183,0.00305015,3973.6,3973.1,2.51692]
[1734009690586,0.00305015,3973.6,3972.9,3.49943738]
[1734009690818,0.00305015,3973.6,3972.9,6.01648738]
[1734009691124,0.00305015,3973.6,3973.1,2.51692]
[1734009691622,0.00305015,3973.6,3973.0,2.51695]
[1734009693422,1.6243,3973.5,3972.9,3.49943738]
[1734009693812,1.6243,3973.5,3973.1,2.51692]
[1734009694140,0.00305015,3973.6,3973.2,2.51686]
[1734009695287,0.00305015,3973.6,3972.9,6.01643738]
[1734009695488,0.00305015,3973.6,3973.1,2.5169]
[1734009695731,0.00305015,3973.6,3973.2,2.51685]
[1734009695905,0.00305015,3973.6,3973.3,2.51679]
[1734009696692,0.00305015,3973.6,3972.9,3.49943738]
[1734009696693,0.00305015,3973.6,3973.1,2.51692]
[1734009697335,0.00305015,3973.6,3972.9,3.49943738]
[1734009697505,0.00305015,3973.6,3973.3,2.51673]
[1734009697704,0.00305015,3973.6,3972.9,3.49943738]
[1734009697705,0.00305015,3973.6,3973.5,2.51667]
[1734009698012,0.00305015,3973.6,3973.4,2.51673]
[1734009698325,0.00305015,3973.6,3972.9,3.49943738]
[1734009698543,1.5847,3973.5,3973.0,2.51697]
[1734009698690,1.5847,3973.5,3972.9,3.49943738]
[1734009698691,1.5847,3973.5,3973.1,2.51689]
[1734009699120,1.5847,3973.5,3972.9,3.49943738]
[1734009699505,1.5847,3973.5,3973.1,2.51692]
[1734009700302,1.5847,3973.5,3973.2,2.51685]
[1734009700519,0.00305015,3973.6,3972.9,3.49943738]
[1734009701029,0.00305015,3973.6,3973.5,2.51667]
[1734009707351,0.00305015,3973.6,3973.5,5.26195433]
[1734009708211,1.5e-07,3973.6,3973.5,28.25632133]
[1734009708537,1.5e-07,3973.6,3973.5,8.26195433]
[1734009708916,1.12792831,3974.8,3973.5,8.26195433]
[1734009708917,1.12792831,3974.8,3974.0,2.51635]
[1734009709118,1.12792831,3974.8,3974.7,5.26119433]
[1734009710254,0.00306726,3974.9,3974.8,2.51584]
[1734009710456,0.00306726,3974.9,3974.8,2.54099578]
[1734009710751,0.00306726,3974.9,3974.8,2.51584]
[1734009711256,0.00306726,3974.9,3974.8,6.01176791]
[1734009714745,0.00306726,3974.9,3974.8,3.49592791]
[1734009715121,0.00306726,3974.9,3974.3,3.49592791]
[1734009715431,0.15978399,3974.9,3974.3,3.49592791]
[1734009716916,1.5631,3974.8,3973.8,3.49592791]
[1734009717119,1.5631,3974.8,3973.3,3.49592791]
[1734009717422,1.5631,3974.8,3972.7,4.02767]
[1734009717423,0.00306726,3974.9,3974.3,3.49592791]
[1734009717624,0.00306726,3974.9,3973.8,6.01236791]
[1734009717825,1.5578,3974.8,3973.8,3.49592791]
[1734009718140,0.15708673,3974.7,3973.9,2.51639]
[1734009718341,0.15708673,3974.7,3974.1,2.51628]
[1734009718521,0.15708673,3974.7,3974.3,3.49592791]
[1734009718817,0.00306726,3974.9,3974.3,3.49592791]
[1734009719021,1.5337,3974.8,3973.9,2.51641]
[1734009719221,1.5337,3974.8,3973.8,3.49592791]
[1734009719620,1.5337,3974.8,3974.3,2.5161]
[1734009719923,0.00306726,3974.9,3974.8,2.51584]
[1734009721628,0.00306726,3974.9,3974.6,2.51591]
[1734009721861,0.00306726,3974.9,3974.1,2.51628]
[1734009722046,0.00306726,3974.9,3974.1,2.51627]
[1734009722223,0.00306726,3974.9,3973.9,3.0]
[1734009722224,1.6472,3974.8,3973.3,5.53669032]
[1734009722429,0.16602673,3974.7,3973.7,2.5165]
[1734009722691,1.5411,3974.6,3972.9,1.6097]
[1734009722825,0.00306726,3974.9,3972.8,6.03409452]
[1734009722826,1.5411,3974.3,3973.2,2.51684]
[1734009723165,2.51635,3974.1,3972.8,3.49592791]
[1734009723368,0.00306726,3974.9,3972.2,2.53816661]
[1734009723369,2.51662,3973.6,3972.2,2.51748]
[1734009723530,2.51662,3973.6,3971.8,6.01361791]
[1734009723531,1.5423,3973.4,3971.8,6.01361791]
[1734009723733,1.5423,3973.0,3971.3,3.49592791]
[1734009724070,1.5423,3972.7,3971.6,2.51787]
[1734009724271,1.5423,3972.7,3971.9,3.49592791]
[1734009724272,1.46044202,3972.7,3971.9,3.49592791]
[1734009724485,0.251662,3973.5,3972.5,2.51729]
[1734009724780,2.51636,3974.0,3972.0,0.69487483]
[1734009725080,2.51622,3974.3,3972.0,0.69487483]
[1734009725231,0.55,3974.8,3972.0,0.35217877]
[1734009725436,2.51648,3973.8,3971.9,6.01355791]
[1734009725630,0.50350522,3973.9,3972.2,2.51744]
[1734009725840,0.50350522,3973.9,3972.1,0.377353]
[1734009726089,0.50350522,3973.9,3972.4,5.03792791]
[1734009726273,2.51598,3974.6,3973.2,2.5168]
[1734009726578,2.51598,3974.6,3972.7,2.51712]
[1734009726579,0.251598,3974.5,3973.3,0.02516828]
[1734009726743,0.00306726,3974.9,3973.4,3.49592791]
[1734009726937,0.00306726,3974.9,3974.2,2.51616]
[1734009727137,0.00306726,3974.9,3974.6,2.51592]
[1734009727344,0.00306726,3974.9,3974.8,2.51584]
[1734009728063,1.5834,3974.8,3974.3,2.55157975]
[1734009728279,0.15964673,3974.7,3973.5,2.55157975]
[1734009728610,1.5834,3974.6,3973.2,3.0]
[1734009728771,1.5834,3974.6,3973.5,2.51663]
[1734009729311,0.00306726,3974.9,3974.3,2.51616]
[1734009729609,0.00306726,3974.9,3974.1,2.5528485]
[1734009729757,1.5538,3974.7,3973.7,2.5528485]
[1734009729961,1.5538,3974.4,3973.6,2.5528485]
[1734009730271,1.5538,3974.4,3973.3,5.0696285]
[1734009730489,1.5538,3974.4,3973.3,2.5528485]
[1734009730670,1.5538,3974.4,3973.5,2.51666]
[1734009730871,1.5538,3974.4,3973.4,2.5528485]
[1734009731071,1.960787,3974.4,3973.3,2.5528485]
[1734009731286,1.5538,3974.4,3973.2,2.5528485]
[1734009731455,1.5538,3974.4,3973.1,3.49592791]
[1734009731660,2.51654,3973.8,3973.1,3.0]
[1734009731859,2.51646,3973.9,3972.8,3.0]
[1734009732067,1.5332,3974.2,3972.7,2.55566957]
[1734009732256,1.5391,3974.0,3972.7,2.55566957]
[1734009732484,1.5391,3974.0,3972.9,2.51703]
[1734009732698,1.5391,3974.0,3972.6,6.05249738]
[1734009732878,2.51656,3973.7,3972.6,3.49592791]
[1734009733085,1.5391,3974.0,3973.3,2.51678]
[1734009733380,1.5391,3974.0,3973.5,2.51667]
[1734009733576,1.5391,3974.0,3973.3,2.55656947]
[1734009734029,1.5391,3974.0,3973.2,3.49592791]
[1734009734165,1.5391,3974.0,3972.9,5.55656947]
[1734009734166,1.69301,3974.0,3972.9,5.55656947]
[1734009734355,1.69301,3974.0,3973.0,2.55656947]
[1734009734569,1.69301,3974.0,3972.9,5.55656947]
[1734009734785,1.5391,3974.0,3973.5,2.51665]
[1734009734984,1.5391,3974.0,3973.3,2.51678]
[1734009735207,1.5391,3974.0,3973.2,3.49592791]
[1734009735510,1.5391,3974.0,3973.0,5.07354947]
[1734009735665,1.5391,3974.0,3972.7,3.49592791]
[1734009735666,1.5391,3974.0,3973.4,2.51672]
[1734009735913,1.5391,3974.0,3973.1,2.51691]
[1734009736122,1.944628,3974.0,3973.0,2.55666961]
[1734009736367,2.5167,3973.5,3972.6,2.55666961]
[1734009736572,2.51683,3973.3,3972.5,2.55666961]
[1734009736862,1.6253,3973.7,3972.2,3.49592791]
[1734009737067,2.51675,3973.4,3972.2,3.49592791]
[1734009737228,1.6253,3973.7,3972.2,3.49592791]
[1734009737419,2.51671,3973.5,3972.3,2.51742]
[1734009737766,0.21172517,3973.6,3972.3,2.51742]
[1734009737767,4.16584,3973.4,3972.3,2.51742]
[1734009737979,0.15814399,3974.9,3973.4,2.51673]
[1734009738178,1.6491,3974.8,3973.4,0.02516605]
[1734009738456,1.6491,3974.8,3973.8,6.05259752]
[1734009738610,1.6491,3974.8,3974.1,2.51628]
[1734009739041,1.6491,3974.8,3973.8,6.05259752]
[1734009739259,1.6491,3974.8,3973.7,2.55666961]
[1734009739260,1.8308244,3974.8,3973.7,2.55666961]
[1734009739424,1.8308244,3974.8,3974.0,2.51635]
[1734009739640,1.8308244,3974.8,3973.6,2.55666961]
[1734009739815,1.8308244,3974.8,3973.9,2.51641]
[1734009740014,0.18438917,3974.7,3973.7,2.51653]
[1734009740209,0.18438917,3974.7,3973.5,3.0]
[1734009740463,0.18438917,3974.7,3973.9,2.5164]
[1734009741053,0.18438917,3974.7,3973.4,5.51673]
[1734009741054,0.18438917,3974.7,3974.2,2.51622]
[1734009741362,1.6491,3974.8,3974.3,2.51613]
[1734009741515,1.6491,3974.8,3973.7,3.49592791]
[1734009741516,1.6491,3974.8,3973.7,6.05193988]
[1734009741721,1.6491,3974.8,3974.0,2.51631]
[1734009741921,1.6491,3974.8,3974.1,2.51628]
[1734009742274,1.6491,3974.8,3973.9,2.51641]
[1734009742472,0.16621673,3974.7,3973.9,2.51641]
[1734009742619,0.16621673,3974.7,3973.7,3.49592791]
[1734009742956,2.5161,3974.4,3973.1,2.55601197]
[1734009743125,1.644,3974.5,3973.0,3.49592791]
[1734009743126,2.51626,3974.2,3973.0,6.01290791]
[1734009743360,1.5336,3974.1,3973.0,3.49592791]
[1734009743562,2.51648,3973.8,3972.6,5.07323197]
[1734009743772,1.5336,3974.1,3972.4,3.49592791]
[1734009743773,2.51638,3974.0,3972.8,2.51705]
[1734009743986,2.51644,3973.9,3972.6,2.51723]
[1734009744170,1.5336,3974.1,3972.7,2.51714]
[1734009744493,0.49813293,3974.2,3972.4,3.49592791]
[1734009744494,2.51657,3973.7,3972.4,3.49592791]
[1734009744697,2.51657,3973.7,3972.5,2.51729]
[1734009745251,2.51663,3973.6,3972.5,2.51729]
[1734009745813,2.51663,3973.6,3972.4,3.49592791]
[1734009746103,1.6438,3973.8,3972.4,3.49592791]
[1734009746251,1.6438,3973.2,3972.4,3.49592791]
[1734009746867,1.6438,3973.2,3971.9,3.49592791]
[1734009747079,0.16438,3973.7,3971.4,3.07050107]
[1734009747080,0.16438,3973.7,3971.6,2.55875089]
[1734009747265,0.16438,3973.7,3971.4,3.49592791]
[1734009747266,1.5892,3973.2,3972.4,3.49592791]
[1734009747482,0.50185447,3973.6,3973.1,2.51688]
[1734009747787,0.50185447,3973.6,3972.9,3.49592791]
[1734009747989,1.5892,3973.7,3972.9,3.49592791]
[1734009747990,1.5892,3973.7,3973.1,2.51689]
[1734009748491,1.5892,3973.7,3973.0,2.51695]
[1734009748692,1.5892,3973.7,3972.9,3.49592791]
[1734009748892,1.5892,3973.7,3973.1,2.5169]
[1734009749089,0.00306726,3974.9,3973.4,5.11422791]
[1734009749090,1.6034,3974.3,3973.4,5.11422791]
[1734009749276,1.6034,3974.3,3973.8,2.51647]
[1734009749588,1.6034,3974.3,3973.4,5.11422791]
[1734009749991,1.6009,3974.8,3973.5,3.0]
[1734009750496,1.6009,3974.8,3974.0,3.49592791]
[1734009750792,0.00306726,3974.9,3974.3,4.5432]
[1734009751024,0.00306726,3974.9,3974.8,2.51584]
[1734009753826,0.00306726,3974.9,3974.8,5.51584]
[1734009754427,0.00306726,3974.9,3974.6,2.51592]
[1734009754613,0.00306726,3974.9,3974.0,3.49592791]
[1734009754614,0.00306726,3974.9,3974.8,2.51584]
[1734009756024,0.00306726,3974.9,3974.1,2.55410544]
[1734009756025,0.00306726,3974.9,3974.5,2.51602]
[1734009756196,0.00306726,3974.9,3974.6,2.51593]
[1734009756528,0.00306726,3974.9,3974.7,2.51586]
[1734009757026,0.00306726,3974.9,3974.8,4.08499933]
[1734009757241,0.00306726,3974.9,3974.8,4.05984]
[1734009757732,0.00306726,3974.9,3974.8,2.51584]
[1734009758030,0.00306726,3974.9,3974.2,2.51616]
[1734009758246,0.00306726,3974.9,3973.9,1.5255]
[1734009758451,0.00306726,3974.9,3973.7,2.55474924]
[1734009758648,0.00306726,3974.9,3973.7,2.51654]
[1734009759108,0.00306726,3974.9,3973.5,3.49592791]
[1734009759306,0.00306726,3974.9,3973.7,2.51652]
[1734009759507,0.00306726,3974.9,3973.1,2.55474924]
[1734009759706,0.00306726,3974.9,3972.7,1.6299]
[1734009759707,0.00306726,3974.9,3973.5,3.49592791]
[1734009759930,0.00306726,3974.9,3973.7,2.51654]
[1734009760121,0.00306726,3974.9,3973.5,3.49592791]
[1734009760122,2.51884726,3974.9,3973.8,2.51645]
[1734009760321,2.51884726,3974.9,3973.5,3.49592791]
[1734009760322,2.51884726,3974.9,3973.6,2.5166]
[1734009760538,0.00306726,3974.9,3973.5,3.49592791]
[1734009760744,2.51595,3974.7,3973.6,3.0]
[1734009760966,0.00306726,3974.9,3973.7,3.0]
[1734009761170,1.5524,3974.8,3973.7,3.0]
[1734009761482,4.06826,3974.8,3973.6,3.0]
[1734009761645,4.06826,3974.8,3973.4,3.0]
[1734009761850,4.06826,3974.8,3973.7,3.0]
[1734009762187,0.00306726,3974.9,3974.8,2.51584]
[1734009762734,0.00306726,3974.9,3974.5,2.51599]
[1734009762934,0.00306726,3974.9,3974.8,7.08514]
[1734009763693,0.00306726,3974.9,3974.8,29.799002]
[1734009763846,0.00306726,3974.9,3974.8,14.379503]
[1734009764048,7.26e-06,3975.0,3974.9,5.51578]
[1734009764257,7.26e-06,3975.0,3974.9,37.972906]
[1734009764684,7.26e-06,3975.0,3974.9,29.21158]
[1734009764858,7.26e-06,3975.0,3974.9,28.572287]
[1734009765631,7.26e-06,3975.0,3974.9,24.19958719]
[1734009765868,7.26e-06,3975.0,3974.9,7.04978]
[1734009766092,0.01,3976.0,3975.8,2.51521]
[1734009766383,0.00305821,3976.7,3976.5,2.49939266]
[1734009766585,0.00305821,3976.7,3976.4,3.49592791]
[1734009766937,0.00305821,3976.7,3976.4,6.01075791]
[1734009767133,1.5522,3976.8,3976.4,6.01075791]
[1734009767134,1.40525821,3976.8,3976.4,6.01075791]
[1734009767354,1.40525821,3976.8,3976.4,3.49592791]
[1734009767583,1.40525821,3976.8,3975.9,6.49592791]
[1734009767732,1.40525821,3976.8,3976.2,2.51495]
[1734009767938,1.40525821,3976.8,3975.9,6.49592791]
[1734009768234,1.55201397,3976.8,3975.9,3.49592791]
[1734009768439,1.55201397,3976.8,3976.0,2.51507]
[1734009768637,0.06229939,3977.0,3975.5,3.0]
[1734009768638,0.06229939,3977.0,3976.6,2.51471]
[1734009768840,0.06229939,3977.0,3976.9,3.49592791]
[1734009769138,0.06229939,3977.0,3976.9,10.52644791]
[1734009769341,0.1670712,3977.5,3977.4,2.5142]
[1734009769587,0.1670712,3977.5,3977.4,7.91198643]
[1734009769802,0.1670712,3977.5,3977.1,2.51438]
[1734009769936,0.1670712,3977.5,3976.9,8.01192791]
[1734009770139,0.1670712,3977.5,3976.9,4.516]
[1734009770341,0.1670712,3977.5,3977.4,3.49592791]
[1734009770585,1.591,3977.4,3976.9,3.49592791]
[1734009770739,0.17611464,3977.3,3976.9,3.49592791]
[1734009771390,2.69039464,3977.3,3976.4,3.49592791]
[1734009771691,2.51448,3977.0,3975.9,3.49592791]
[1734009771901,1.631,3977.2,3975.9,3.49592791]
[1734009772065,2.5146,3976.8,3975.9,3.49592791]
[1734009772242,1.6349,3976.6,3975.9,3.49592791]
[1734009772560,1.6349,3976.6,3974.6,3.0511524]
[1734009772561,1.6349,3976.3,3974.5,2.51601]
[1734009772741,2.51566,3975.1,3973.8,3.49592791]
[1734009772941,0.49956409,3976.1,3973.8,3.49592791]
[1734009773145,2.51551,3975.4,3973.9,2.5164]
[1734009773358,0.55,3975.9,3973.8,3.49592791]
[1734009773560,2.5154,3975.5,3973.5,2.51666]
[1734009773760,2.51591,3974.7,3973.5,2.51666]
[1734009773962,2.51578,3974.9,3973.5,2.51661]
[1734009774251,2.51582,3974.9,3973.4,2.51673]
[1734009774564,2.51565,3975.2,3973.3,6.01271791]
[1734009774760,0.12995641,3975.8,3974.0,2.51635]
[1734009774975,0.8,3976.1,3973.5,1.515]
[1734009775286,2.51604,3974.5,3973.1,4.03186]
[1734009775492,4.04592791,3975.7,3973.1,4.03186]
[1734009775493,2.51559,3975.2,3973.1,1.515]
[1734009775690,0.558106,3975.1,3973.1,1.515]
[1734009775890,1.6326,3975.0,3973.1,1.015]
[1734009776061,2.51585,3974.8,3973.5,2.51662]
[1734009776593,1.6326,3975.0,3973.7,2.51652]
[1734009776760,1.6326,3975.0,3974.2,2.51622]
[1734009776946,1.6326,3975.0,3973.3,3.02516586]
[1734009776947,1.79586,3975.0,3973.9,2.51638]
[1734009777151,1.79586,3975.0,3973.5,3.0]
[1734009777384,1.6326,3975.0,3973.8,3.0]
[1734009778159,1.6326,3975.0,3974.0,3.0]
[1734009778363,1.6326,3975.0,3973.8,3.0]
[1734009778364,1.6326,3975.0,3974.1,2.51626]
[1734009778592,1.6326,3975.0,3974.0,3.0]
[1734009778768,1.6326,3975.0,3974.0,2.5163]
[1734009779095,2.51579,3974.9,3973.6,2.51657]
[1734009779277,1.79586,3975.0,3973.5,1.6006]
[1734009780051,2.51586,3974.8,3973.5,1.6006]
[1734009780252,2.51599,3974.6,3973.3,3.0]
[1734009780489,1.6403,3974.5,3973.0,1.608]
[1734009780805,0.16326,3975.0,3972.9,3.0]
[1734009780806,1.6403,3974.1,3972.9,2.51702]
[1734009780956,1.6403,3974.1,3973.0,3.0]
[1734009781155,1.6403,3974.1,3972.8,3.49592791]
[1734009781356,0.16326,3975.0,3973.3,3.49592791]
[1734009781357,1.6403,3974.9,3973.3,3.49592791]
[1734009781558,1.6403,3974.9,3973.3,6.01270791]
[1734009781786,0.180356,3974.8,3973.9,2.51641]
[1734009782091,0.180356,3974.8,3973.9,1.6079]
[1734009782297,1.5843,3975.7,3974.0,2.51635]
[1734009782457,1.5843,3975.7,3974.0,0.02516302]
[1734009782661,1.5843,3975.7,3973.9,4.6079]
[1734009783057,2.51562,3975.2,3973.9,2.51641]
[1734009783263,3.03065151,3976.1,3973.5,0.35]
[1734009783264,1.6447,3975.0,3973.5,1.9303]
[1734009783563,1.6447,3974.4,3973.5,0.35]
[1734009784015,1.6663,3974.9,3973.8,3.49592791]
[1734009784159,1.6663,3976.1,3974.7,2.51588]
[1734009784365,1.6663,3976.1,3974.3,3.49592791]
[1734009784366,0.16663,3976.0,3974.3,3.49592791]
[1734009784687,0.16663,3976.0,3974.9,1.6312]
[1734009784900,0.16663,3976.0,3974.9,4.14698]
[1734009785198,0.16663,3976.0,3975.1,2.51565]
[1734009785407,0.16663,3976.0,3975.0,3.0]
[1734009785580,0.16663,3976.0,3975.6,2.51533]
[1734009785775,2.51445,3977.0,3975.6,2.51529]
[1734009785975,1.6215,3976.9,3975.9,2.51515]
[1734009786180,1.6215,3976.9,3975.4,3.0]
[1734009786407,1.6215,3976.9,3976.1,2.515]
[1734009787014,2.51463,3976.8,3975.5,2.5154]
[1734009787178,1.6215,3976.9,3975.6,2.51532]
[1734009787179,0.413613,3976.7,3975.6,2.51532]
[1734009787507,1.6307,3976.6,3974.9,1.6312]
[1734009787689,1.6307,3975.9,3974.8,6.01173791]